[Event "African Online-ch Women 2021"]
[Site "Online"]
[Date "2021.02.01"]
[Round "1.11"]
[White "Namangale, Susan"]
[Black "Charinda, Kudzanayi"]
[Result "0-1"]
[WhiteElo "1344"]
[BlackElo "1710"]
[PlyCount "66"]
[EventDate "2021.02.01"]
[EventType "swiss"]
[EventCountry "NET"]
[TimeControl "1500+10"]
[WhiteClock "0:03:02"]
[BlackClock "0:12:03"]

1. e4 {[%emt 0:00:00]} c5 {[%emt 0:00:13]} 2. Nf3 {[%emt 0:00:07]} d6 {[%emt 0:00:02]} 3. g3 {[%emt 0:00:08]} Nf6 {[%emt 0:00:06]} 4. d3 {[%emt 0:00:06]} e6 {[%emt 0:00:06]} 5. Bg2 {[%emt 0:00:06]} Be7 {[%emt 0:00:07]} 6. c4 {[%emt 0:00:05]} Nc6 {[%emt 0:00:14]} 7. O-O {[%emt 0:00:05]} O-O {[%emt 0:00:07]} 8. Be3 {[%emt 0:00:04]} e5 {[%emt 0:00:42]} 9. Nc3 {[%emt 0:00:08]} Bg4 {[%emt 0:00:17]} 10. h3 {[%emt 0:00:08]} Be6 {[%emt 0:00:07]} 11. Nh2 {[%emt 0:00:16]} Qc8 {[%emt 0:00:14]} 12. Nd5 {[%emt 0:00:26]} Bxh3 {[%emt 0:01:29]} 13. Nxf6+ {[%emt 0:00:53]} Bxf6 {[%emt 0:00:08]} 14. f4 {[%emt 0:00:22]} Bxg2 {[%emt 0:00:10]} 15. Kxg2 {[%emt 0:00:04]} exf4 {[%emt 0:00:17]} 16. Bxf4 {[%emt 0:00:06]} Be5 {[%emt 0:00:36]} 17. Ng4 {[%emt 0:01:06]} f5 {[%emt 0:01:10]} 18. Nxe5 {[%emt 0:01:35]} dxe5 {[%emt 0:00:25]} 19. Be3 {[%emt 0:00:25]} Nd4 {[%emt 0:00:06]} 20. Bxd4 {[%emt 0:01:24]} cxd4 {[%emt 0:00:19]} 21. Qh5 {[%emt 0:00:16]} fxe4 {[%emt 0:00:32]} 22. dxe4 {[%emt 0:00:24]} Qe6 {[%emt 0:00:49]} 23. Rh1 {[%emt 0:00:32]} h6 {[%emt 0:00:12]} 24. b3 {[%emt 0:01:43]} Rf6 {[%emt 0:00:18]} 25. Rh4 {[%emt 0:00:54]} Raf8 {[%emt 0:00:13]} 26. Rg4 {[%emt 0:00:35]} Rf2+ {[%emt 0:01:33]} 27. Kg1 {[%emt 0:00:50]} Qf6 {[%emt 0:01:01]} 28. Qh3 {[%emt 0:04:07]} Qf3 {[%emt 0:01:16]} 29. Rg6 {[%emt 0:00:58]} Qe3 {[%emt 0:01:40]} 30. Qe6+ {[%emt 0:02:59]} Kh8 {[%emt 0:01:36]} 31. Rxh6+ {[%emt 0:01:14] White offered a draw.} gxh6 {[%emt 0:01:53]} 32. Qxe5+ {[%emt 0:00:15]} Kh7 {[%emt 0:00:13]} 33. Qe7+ {[%emt 0:05:07]} R2f7+ {[%emt 0:00:16] #R} 0-1

[Event "African Online-ch Women 2021"]
[Site "Online"]
[Date "2021.02.01"]
[Round "1.12"]
[White "Miladi, Amen"]
[Black "Malehloa, Likhomo"]
[Result "1-0"]
[WhiteElo "1802"]
[BlackElo "1331"]
[PlyCount "121"]
[EventDate "2021.02.01"]
[EventType "swiss"]
[EventCountry "NET"]
[TimeControl "1500+10"]
[WhiteClock "0:03:46"]
[BlackClock "0:12:58"]

1. e4 {[%emt 0:00:00]} e6 {[%emt 0:00:11]} 2. d4 {[%emt 0:00:04]} d5 {[%emt 0:00:09]} 3. Nc3 {[%emt 0:00:01]} dxe4 {[%emt 0:00:05]} 4. Nxe4 {[%emt 0:00:08]} Nf6 {[%emt 0:00:05]} 5. Nxf6+ {[%emt 0:00:30]} Qxf6 {[%emt 0:00:06]} 6. Nf3 {[%emt 0:00:03]} h6 {[%emt 0:00:11]} 7. Bd3 {[%emt 0:01:19]} Bd6 {[%emt 0:01:01]} 8. Qe2 {[%emt 0:00:46]} O-O {[%emt 0:00:15]} 9. Qe4 {[%emt 0:00:27]} Rd8 {[%emt 0:01:52]} 10. h4 {[%emt 0:02:00]} Qg6 {[%emt 0:01:50]} 11. Qxg6 {[%emt 0:01:09]} fxg6 {[%emt 0:00:07]} 12. Bxg6 {[%emt 0:00:01]} Nc6 {[%emt 0:00:03]} 13. c3 {[%emt 0:00:30]} Ne7 {[%emt 0:00:21]} 14. Be4 {[%emt 0:00:36]} Rf8 {[%emt 0:00:21]} 15. a3 {[%emt 0:02:15]} c6 {[%emt 0:01:06]} 16. Nd2 {[%emt 0:01:33]} Nd5 {[%emt 0:01:02]} 17. c4 {[%emt 0:01:09]} Nf6 {[%emt 0:00:57]} 18. Bf3 {[%emt 0:01:40]} Bd7 {[%emt 0:00:54]} 19. O-O {[%emt 0:00:26]} Be8 {[%emt 0:00:59]} 20. Re1 {[%emt 0:00:32]} Bf7 {[%emt 0:00:09]} 21. b4 {[%emt 0:00:29]} Rfe8 {[%emt 0:00:14]} 22. b5 {[%emt 0:00:35]} Rac8 {[%emt 0:00:09]} 23. bxc6 {[%emt 0:01:07]} bxc6 {[%emt 0:00:06]} 24. Ne4 {[%emt 0:00:29]} Nxe4 {[%emt 0:00:08]} 25. Bxe4 {[%emt 0:00:01]} c5 {[%emt 0:00:24]} 26. Bb2 {[%emt 0:01:06]} cxd4 {[%emt 0:00:13]} 27. Bxd4 {[%emt 0:00:02]} Bb8 {[%emt 0:00:03]} 28. Bb7 {[%emt 0:00:57]} Rxc4 {[%emt 0:00:35]} 29. Be5 {[%emt 0:00:18]} Rxh4 {[%emt 0:00:23]} 30. Bc6 {[%emt 0:01:29]} Bxe5 {[%emt 0:02:54]} 31. Rxe5 {[%emt 0:00:25]} Re7 {[%emt 0:01:11]} 32. Rd1 {[%emt 0:00:33]} Kh7 {[%emt 0:01:03]} 33. Rd7 {[%emt 0:01:21]} Rxd7 {[%emt 0:00:27]} 34. Bxd7 {[%emt 0:00:02]} Rh5 {[%emt 0:00:25]} 35. Rxh5 {[%emt 0:00:04]} Bxh5 {[%emt 0:00:04]} 36. Bxe6 {[%emt 0:00:02]} Kg6 {[%emt 0:00:05]} 37. g4 {[%emt 0:00:02]} Bxg4 {[%emt 0:00:06]} 38. Bxg4 {[%emt 0:00:02]} Kf6 {[%emt 0:00:02]} 39. Kf1 {[%emt 0:00:03]} Ke5 {[%emt 0:00:03]} 40. Ke2 {[%emt 0:00:03]} Kd4 {[%emt 0:00:03]} 41. a4 {[%emt 0:00:08]} g6 {[%emt 0:00:07]} 42. Kf3 {[%emt 0:00:08]} h5 {[%emt 0:00:04]} 43. Bd7 {[%emt 0:00:03]} Ke5 {[%emt 0:00:05]} 44. Be8 {[%emt 0:00:03]} Kf6 {[%emt 0:00:03]} 45. Ke4 {[%emt 0:00:17]} Kg5 {[%emt 0:00:05]} 46. Ke5 {[%emt 0:00:05]} h4 {[%emt 0:00:05]} 47. Bd7 {[%emt 0:00:06]} Kh5 {[%emt 0:00:03]} 48. f3 {[%emt 0:00:11]} Kg5 {[%emt 0:00:08]} 49. Bg4 {[%emt 0:00:06]} a5 {[%emt 0:00:06]} 50. Kd5 {[%emt 0:00:02]} Kf4 {[%emt 0:00:05]} 51. Kc5 {[%emt 0:04:25]} Ke5 {[%emt 0:00:06]} 52. Kb5 {[%emt 0:00:05]} Kd5 {[%emt 0:00:02]} 53. Kxa5 {[%emt 0:00:05]} Kc5 {[%emt 0:00:02]} 54. Ka6 {[%emt 0:00:15]} Kc6 {[%emt 0:00:02]} 55. f4 {[%emt 0:00:16]} Kd5 {[%emt 0:00:25]} 56. Kb6 {[%emt 0:00:10]} Ke4 {[%emt 0:00:03]} 57. a5 {[%emt 0:00:15]} Kxf4 {[%emt 0:00:02]} 58. Bd7 {[%emt 0:00:16]} g5 {[%emt 0:00:03]} 59. a6 {[%emt 0:00:02]} g4 {[%emt 0:00:02]} 60. a7 {[%emt 0:00:03]} g3 {[%emt 0:00:02]} 61. a8=Q {[%emt 0:00:04] #r} 1-0

[Event "African Online-ch Women 2021"]
[Site "Online"]
[Date "2021.02.01"]
[Round "1.13"]
[White "McPherson, Naleli"]
[Black "Shaba, Linda Dalitso"]
[Result "1-0"]
[WhiteElo "1303"]
[BlackElo "1603"]
[PlyCount "43"]
[EventDate "2021.02.01"]
[EventType "swiss"]
[EventCountry "NET"]
[TimeControl "1500+10"]
[WhiteClock "0:12:04"]
[BlackClock "0:01:50"]

1. e4 {[%emt 0:00:00]} e6 {[%emt 0:00:07]} 2. d4 {[%emt 0:00:11]} d5 {[%emt 0:00:04]} 3. exd5 {[%emt 0:00:13]} exd5 {[%emt 0:00:04]} 4. Nf3 {[%emt 0:00:14]} Nf6 {[%emt 0:00:07]} 5. Bd3 {[%emt 0:00:18]} Bd6 {[%emt 0:00:05]} 6. O-O {[%emt 0:00:12]} O-O {[%emt 0:00:07]} 7. h3 {[%emt 0:00:12]} h6 {[%emt 0:01:08]} 8. Re1 {[%emt 0:00:25]} Re8 {[%emt 0:00:21]} 9. Ne5 {[%emt 0:00:28]} c5 {[%emt 0:01:08]} 10. c3 {[%emt 0:00:28]} Nc6 {[%emt 0:00:15]} 11. Nxc6 {[%emt 0:00:50]} bxc6 {[%emt 0:00:20]} 12. Be3 {[%emt 0:00:37]} Qb6 {[%emt 0:01:39]} 13. b3 {[%emt 0:01:03]} Bd7 {[%emt 0:01:22]} 14. Nd2 {[%emt 0:00:54]} Re7 {[%emt 0:00:50]} 15. Qf3 {[%emt 0:01:09]} Rae8 {[%emt 0:04:06]} 16. Nf1 {[%emt 0:00:53]} Ne4 {[%emt 0:01:11]} 17. Rac1 {[%emt 0:01:45]} Ng5 {[%emt 0:09:54]} 18. Qh5 {[%emt 0:01:52]} cxd4 {[%emt 0:02:49]} 19. cxd4 {[%emt 0:00:59]} Ne4 {[%emt 0:00:44]} 20. Bxe4 {[%emt 0:02:07]} Rxe4 {[%emt 0:00:06]} 21. Nd2 {[%emt 0:00:51]} R4e6 {[%emt 0:00:13]} 22. Nf3 {[%emt 0:00:55] #t} 1-0

[Event "African Online-ch Women 2021"]
[Site "Online"]
[Date "2021.02.01"]
[Round "1.14"]
[White "Wanjiru, Lucy"]
[Black "Karania, Saloni"]
[Result "1-0"]
[WhiteElo "1623"]
[BlackElo "1304"]
[PlyCount "45"]
[EventDate "2021.02.01"]
[EventType "swiss"]
[EventCountry "NET"]
[TimeControl "1500+10"]
[WhiteClock "0:21:02"]
[BlackClock "0:17:51"]

1. e4 {[%emt 0:00:00]} e5 {[%emt 0:00:04]} 2. Nf3 {[%emt 0:00:08]} Nc6 {[%emt 0:00:03]} 3. Bc4 {[%emt 0:00:06]} Bc5 {[%emt 0:00:07]} 4. O-O {[%emt 0:00:04]} h6 {[%emt 0:00:06]} 5. c3 {[%emt 0:00:03]} Nf6 {[%emt 0:00:16]} 6. d4 {[%emt 0:01:10]} exd4 {[%emt 0:00:35]} 7. cxd4 {[%emt 0:00:05]} Bb6 {[%emt 0:00:34]} 8. e5 {[%emt 0:00:22]} Ne4 {[%emt 0:00:34]} 9. a4 {[%emt 0:01:39]} a6 {[%emt 0:00:24]} 10. Re1 {[%emt 0:00:36]} Ng5 {[%emt 0:01:02]} 11. d5 {[%emt 0:01:10]} Na5 {[%emt 0:00:54]} 12. Ba2 {[%emt 0:00:06]} O-O {[%emt 0:00:38]} 13. Nxg5 {[%emt 0:00:28]} hxg5 {[%emt 0:00:13]} 14. b4 {[%emt 0:00:03]} d6 {[%emt 0:00:28]} 15. bxa5 {[%emt 0:00:15]} Bxa5 {[%emt 0:00:08]} 16. Bd2 {[%emt 0:00:06]} Bb6 {[%emt 0:01:11]} 17. e6 {[%emt 0:00:45]} fxe6 {[%emt 0:00:15]} 18. dxe6 {[%emt 0:00:08]} Qf6 {[%emt 0:02:30]} 19. e7+ {[%emt 0:00:05]} Kh7 {[%emt 0:00:11]} 20. Qh5+ {[%emt 0:00:12]} Qh6 {[%emt 0:00:12]} 21. Qxh6+ {[%emt 0:00:02]} gxh6 {[%emt 0:00:06]} 22. exf8=Q {[%emt 0:00:05]} Kg6 {[%emt 0:00:18]} 23. Qf7# {[%emt 0:00:10]} 1-0

[Event "African Online-ch Women 2021"]
[Site "Online"]
[Date "2021.02.01"]
[Round "1.15"]
[White "Leboela, Maboloko"]
[Black "Ndirangu, Joyce Nyaruai"]
[Result "1-0"]
[WhiteElo "1296"]
[BlackElo "1659"]
[PlyCount "165"]
[EventDate "2021.02.01"]
[EventType "swiss"]
[EventCountry "NET"]
[TimeControl "1500+10"]
[WhiteClock "0:22:13"]
[BlackClock "0:01:50"]

1. e4 {[%emt 0:00:00]} c5 {[%emt 0:00:13]} 2. Nf3 {[%emt 0:00:04]} Nc6 {[%emt 0:00:04]} 3. Bb5 {[%emt 0:00:10]} b6 {[%emt 0:00:15]} 4. Bxc6 {[%emt 0:00:08]} dxc6 {[%emt 0:00:10]} 5. O-O {[%emt 0:00:03]} Nf6 {[%emt 0:00:25]} 6. d3 {[%emt 0:00:07]} e6 {[%emt 0:00:06]} 7. Bg5 {[%emt 0:00:11] Black stopped clock for 205 seconds.} Be7 {[%emt 0:00:23]} 8. Nc3 {[%emt 0:00:05]} O-O {[%emt 0:00:07]} 9. Ne2 {[%emt 0:00:14]} Ba6 {[%emt 0:00:32]} 10. Ng3 {[%emt 0:00:16]} Qc7 {[%emt 0:00:18]} 11. e5 {[%emt 0:00:14]} Nd5 {[%emt 0:00:07]} 12. Bxe7 {[%emt 0:00:08]} Nxe7 {[%emt 0:00:09]} 13. Re1 {[%emt 0:00:10]} Rad8 {[%emt 0:00:06]} 14. Qe2 {[%emt 0:00:21]} Rd5 {[%emt 0:00:10]} 15. c4 {[%emt 0:00:14]} Rd7 {[%emt 0:00:03]} 16. Qe4 {[%emt 0:00:11]} Rfd8 {[%emt 0:00:06]} 17. Rad1 {[%emt 0:00:24]} Ng6 {[%emt 0:00:45]} 18. h4 {[%emt 0:00:32]} b5 {[%emt 0:00:09]} 19. b3 {[%emt 0:00:37]} Bb7 {[%emt 0:01:55]} 20. h5 {[%emt 0:00:08]} Nf8 {[%emt 0:00:03]} 21. Qe2 {[%emt 0:00:19]} bxc4 {[%emt 0:00:48]} 22. dxc4 {[%emt 0:00:18]} Qa5 {[%emt 0:00:33]} 23. Rxd7 {[%emt 0:00:06]} Rxd7 {[%emt 0:00:03]} 24. a4 {[%emt 0:00:49]} Bc8 {[%emt 0:06:18]} 25. Qe3 {[%emt 0:00:59]} Qd8 {[%emt 0:02:37]} 26. Qxc5 {[%emt 0:00:11]} Qb6 {[%emt 0:00:22]} 27. Qxb6 {[%emt 0:00:26]} axb6 {[%emt 0:00:03]} 28. Ne4 {[%emt 0:00:14]} f6 {[%emt 0:00:07]} 29. exf6 {[%emt 0:00:06]} Rd3 {[%emt 0:00:09]} 30. fxg7 {[%emt 0:00:11]} Kxg7 {[%emt 0:00:05]} 31. b4 {[%emt 0:00:16]} Rb3 {[%emt 0:00:10]} 32. b5 {[%emt 0:00:08]} cxb5 {[%emt 0:00:04]} 33. axb5 {[%emt 0:00:04]} Bb7 {[%emt 0:00:02]} 34. Nfd2 {[%emt 0:00:09]} Rb2 {[%emt 0:00:10]} 35. Nd6 {[%emt 0:00:21]} Bxg2 {[%emt 0:00:13]} 36. Kxg2 {[%emt 0:00:06]} Rxd2 {[%emt 0:00:11]} 37. Nc8 {[%emt 0:00:04]} Kf6 {[%emt 0:00:22]} 38. Nxb6 {[%emt 0:00:05]} Rc2 {[%emt 0:00:03]} 39. Kf3 {[%emt 0:00:06]} Kf5 {[%emt 0:00:06]} 40. Re2 {[%emt 0:00:08]} Rc3+ {[%emt 0:00:05]} 41. Re3 {[%emt 0:00:03]} Rc1 {[%emt 0:00:03]} 42. Re4 {[%emt 0:00:29]} e5 {[%emt 0:00:05]} 43. Nd5 {[%emt 0:00:22]} Nd7 {[%emt 0:00:13]} 44. Ne3+ {[%emt 0:00:05]} Ke6 {[%emt 0:00:12]} 45. Ng4 {[%emt 0:00:09]} Rc3+ {[%emt 0:00:20]} 46. Ne3 {[%emt 0:00:26]} Nf6 {[%emt 0:00:14]} 47. Rh4 {[%emt 0:00:05]} Ne8 {[%emt 0:01:29]} 48. Ke2 {[%emt 0:00:21]} Nd6 {[%emt 0:00:36]} 49. Kd2 {[%emt 0:00:06]} Rb3 {[%emt 0:00:14]} 50. Kc2 {[%emt 0:00:09]} Ra3 {[%emt 0:00:16]} 51. b6 {[%emt 0:00:12]} Ra2+ {[%emt 0:03:40]} 52. Kd3 {[%emt 0:00:08]} Rxf2 {[%emt 0:00:05]} 53. c5 {[%emt 0:00:04]} Rb2 {[%emt 0:06:40]} 54. cxd6 {[%emt 0:00:10]} Rxb6 {[%emt 0:00:03]} 55. Nc4 {[%emt 0:00:07]} Rb3+ {[%emt 0:00:04]} 56. Kc2 {[%emt 0:00:07]} Rb5 {[%emt 0:00:10]} 57. Re4 {[%emt 0:00:35]} Kd7 {[%emt 0:00:23]} 58. Kc3 {[%emt 0:00:34]} Rb1 {[%emt 0:00:57]} 59. Rxe5 {[%emt 0:00:10]} Rh1 {[%emt 0:00:05]} 60. Rg5 {[%emt 0:00:03]} h6 {[%emt 0:00:03]} 61. Ra5 {[%emt 0:00:09]} Rh4 {[%emt 0:00:05]} 62. Ra7+ {[%emt 0:00:05]} Kd8 {[%emt 0:00:03]} 63. Nb6 {[%emt 0:00:14]} Rh3+ {[%emt 0:00:07]} 64. Kd4 {[%emt 0:00:04]} Rh4+ {[%emt 0:00:02]} 65. Ke3 {[%emt 0:00:02]} Ke8 {[%emt 0:00:07]} 66. d7+ {[%emt 0:00:08]} Ke7 {[%emt 0:00:03]} 67. Nd5+ {[%emt 0:00:05]} Kd8 {[%emt 0:00:07]} 68. Nf6 {[%emt 0:00:04]} Rh3+ {[%emt 0:00:05]} 69. Kf4 {[%emt 0:00:04]} Ke7 {[%emt 0:00:02]} 70. Ng8+ {[%emt 0:00:08]} Kd8 {[%emt 0:00:07]} 71. Nf6 {[%emt 0:00:19]} Ke7 {[%emt 0:00:03]} 72. Kf5 {[%emt 0:00:02]} Rf3+ {[%emt 0:00:04]} 73. Ke5 {[%emt 0:00:04]} Re3+ {[%emt 0:00:02]} 74. Kf4 {[%emt 0:00:09]} Re1 {[%emt 0:00:24]} 75. Ng8+ {[%emt 0:00:23]} Kd8 {[%emt 0:00:06]} 76. Nf6 {[%emt 0:00:06]} Ke7 {[%emt 0:00:09]} 77. Nd5+ {[%emt 0:00:03]} Kd8 {[%emt 0:00:14]} 78. Nb6 {[%emt 0:00:05]} Rd1 {[%emt 0:00:02]} 79. Kf5 {[%emt 0:00:07]} Rd6 {[%emt 0:00:08]} 80. Ra8+ {[%emt 0:00:14]} Ke7 {[%emt 0:00:10]} 81. Re8+ {[%emt 0:00:05]} Kf7 {[%emt 0:00:09]} 82. d8=Q {[%emt 0:00:06]} Rxd8 {[%emt 0:00:02]} 83. Rxd8 {[%emt 0:00:03] #r} 1-0

[Event "African Online-ch Women 2021"]
[Site "Online"]
[Date "2021.02.01"]
[Round "1.16"]
[White "Maingi, Sasha"]
[Black "Farzaliyeva, Shams"]
[Result "1-0"]
[WhiteElo "1599"]
[BlackElo "1219"]
[PlyCount "53"]
[EventDate "2021.02.01"]
[EventType "swiss"]
[EventCountry "NET"]
[TimeControl "1500+10"]
[WhiteClock "0:10:52"]
[BlackClock "0:15:34"]

1. e4 {[%emt 0:00:00]} b6 {[%emt 0:00:03]} 2. d4 {[%emt 0:00:27]} Bb7 {[%emt 0:00:07]} 3. Nc3 {[%emt 0:00:28]} e6 {[%emt 0:00:06]} 4. Bd3 {[%emt 0:00:37]} Nf6 {[%emt 0:00:07]} 5. Nf3 {[%emt 0:00:49]} h6 {[%emt 0:00:28]} 6. a3 {[%emt 0:00:22]} Nc6 {[%emt 0:00:21]} 7. O-O {[%emt 0:02:35]} g6 {[%emt 0:02:59]} 8. Re1 {[%emt 0:01:55]} Bg7 {[%emt 0:00:21]} 9. e5 {[%emt 0:02:29]} Nd5 {[%emt 0:00:13]} 10. Nxd5 {[%emt 0:00:15]} exd5 {[%emt 0:00:03]} 11. Be3 {[%emt 0:00:29]} O-O {[%emt 0:00:15]} 12. Qd2 {[%emt 0:00:14]} Kh7 {[%emt 0:00:09]} 13. h4 {[%emt 0:01:01]} Ne7 {[%emt 0:00:33]} 14. h5 {[%emt 0:00:42]} d6 {[%emt 0:00:10]} 15. Nh4 {[%emt 0:00:53]} dxe5 {[%emt 0:00:18]} 16. dxe5 {[%emt 0:00:44]} d4 {[%emt 0:02:46]} 17. Bxd4 {[%emt 0:00:43]} Nc6 {[%emt 0:01:28]} 18. Nf3 {[%emt 0:00:24]} Nxd4 {[%emt 0:00:21]} 19. Nxd4 {[%emt 0:00:04]} Qg5 {[%emt 0:00:09]} 20. Qxg5 {[%emt 0:00:16]} hxg5 {[%emt 0:00:02]} 21. hxg6+ {[%emt 0:00:24]} fxg6 {[%emt 0:00:19]} 22. Ne6 {[%emt 0:00:08]} Rg8 {[%emt 0:00:49]} 23. Nxg5+ {[%emt 0:00:43]} Kh6 {[%emt 0:00:02]} 24. Ne6 {[%emt 0:00:53]} c5 {[%emt 0:00:08]} 25. f4 {[%emt 0:00:45]} Rac8 {[%emt 0:01:23]} 26. Re3 {[%emt 0:00:12]} c4 {[%emt 0:00:06]} 27. Rh3# {[%emt 0:00:06]} 1-0

[Event "African Online-ch Women 2021"]
[Site "Online"]
[Date "2021.02.01"]
[Round "2.5"]
[White "Latreche, Khadidja"]
[Black "McPherson, Naleli"]
[Result "0-1"]
[ECO "C41"]
[WhiteElo "1900"]
[BlackElo "1303"]
[Annotator "RC"]
[PlyCount "118"]
[EventDate "2021.02.01"]
[EventType "swiss"]
[EventCountry "NET"]
[SourceTitle "playchess.com"]
[Source "ChessBase"]
[SourceQuality "1"]
[TimeControl "1500+10"]

1. e4 {[%emt 0:00:00]} e5 {[%emt 0:00:15]} 2. Nf3 {[%emt 0:00:05]} d6 {[%emt 0:00:21]} 3. d4 {[%emt 0:00:06]} exd4 {[%emt 0:00:22]} 4. Nxd4 {[%emt 0:00:07]} c5 {[%emt 0:00:22]} 5. Nf3 {[%emt 0:01:48]} Nc6 {[%emt 0:00:21]} 6. Bc4 {[%emt 0:00:53]} Be7 {[%emt 0:00:22]} 7. O-O {[%emt 0:00:30]} Nf6 {[%emt 0:00:15]} 8. Re1 {[%emt 0:06:31]} O-O {[%emt 0:00:23]} 9. h3 {[%emt 0:00:03]} Be6 {[%emt 0:00:52]} 10. Bxe6 {[%emt 0:01:18]} fxe6 {[%emt 0:00:18]} 11. c4 {[%emt 0:00:04]} e5 {[%emt 0:00:22]} 12. Nc3 {[%emt 0:00:11]} a6 {[%emt 0:00:47]} 13. Ng5 {[%emt 0:01:07]} Qd7 {[%emt 0:00:47]} 14. Nd5 {[%emt 0:00:10]} Nxd5 {[%emt 0:01:09]} 15. Qxd5+ {[%emt 0:00:04]} Kh8 {[%emt 0:03:00]} 16. Nf7+ {[%emt 0:00:05]} Rxf7 {[%emt 0:00:22]} 17. Qxf7 {[%emt 0:00:03]} Rf8 {[%emt 0:03:11]} 18. Qh5 {[%emt 0:00:26]} Nd4 {[%emt 0:00:34]} 19. Rd1 {[%emt 0:03:20]} Qc6 {[%emt 0:01:34]} 20. Qg4 {[%emt 0:01:03]} Rf6 {[%emt 0:01:17]} 21. Qh4 {[%emt 0:04:59]} Nf3+ {[%emt 0:02:49]} 22. gxf3 {[%emt 0:00:13]} Rg6+ {[%emt 0:00:34]} 23. Qg3 {[%emt 0:00:03]} Rxg3+ {[%emt 0:00:39]} 24. fxg3 {[%emt 0:00:02]} b5 {[%emt 0:00:27]} 25. cxb5 {[%emt 0:00:22]} axb5 {[%emt 0:00:19]} 26. Be3 {[%emt 0:00:08]} h6 {[%emt 0:00:31]} 27. b3 {[%emt 0:00:23]} b4 {[%emt 0:00:48]} 28. Rac1 {[%emt 0:00:15]} Qa6 {[%emt 0:01:02]} 29. Rc2 {[%emt 0:00:04]} Kh7 {[%emt 0:00:24]} 30. Kf2 {[%emt 0:00:34]} g5 {[%emt 0:00:38]} 31. f4 {[%emt 0:00:23]} exf4 {[%emt 0:00:31]} 32. gxf4 {[%emt 0:00:03]} Qc8 {[%emt 0:00:36]} 33. f5 {[%emt 0:00:36]} Qe8 {[%emt 0:00:20]} 34. Rd3 {[%emt 0:01:25]} Qh5 {[%emt 0:00:19]} 35. Bc1 {[%emt 0:00:59]} g4 {[%emt 0:00:42]} 36. Kg2 {[%emt 0:00:54]} gxh3+ {[%emt 0:00:33]} 37. Kh2 {[%emt 0:00:03]} d5 {[%emt 0:00:50]} 38. Rxh3 {[%emt 0:00:06]} Bd6+ {[%emt 0:00:36]} 39. Kg1 {[%emt 0:00:46]} Qxh3 {[%emt 0:00:10]} 40. f6 {[%emt 0:00:13]} Qe6 {[%emt 0:00:50]} 41. Rf2 {[%emt 0:00:13]} Qxe4 {[%emt 0:00:16]} 42. Bd2 {[%emt 0:00:10]} Qb1+ {[%emt 0:00:22]} 43. Kg2 {[%emt 0:00:04]} Qxa2 {[%emt 0:00:11]} 44. f7 {[%emt 0:00:03]} Bf8 {[%emt 0:00:19]} 45. Be3 {[%emt 0:00:34]} Qxb3 {[%emt 0:00:08]} 46. Bxc5 {[%emt 0:00:05]} Bxc5 {[%emt 0:00:12]} 47. f8=Q {[%emt 0:00:03]} Bxf8 {[%emt 0:00:05]} 48. Rxf8 {[%emt 0:00:02]} d4 {[%emt 0:00:11]} 49. Rf2 {[%emt 0:00:07]} d3 {[%emt 0:00:07]} 50. Rf3 {[%emt 0:00:01]} Qc2+ {[%emt 0:00:05]} 51. Kg3 {[%emt 0:00:03]} d2 {[%emt 0:00:08]} 52. Rf4 {[%emt 0:00:02]} Qc7 {[%emt 0:00:14]} 53. Kf3 {[%emt 0:00:03]} Qxf4+ {[%emt 0:00:05]} 54. Kxf4 {[%emt 0:00:02]} d1=Q {[%emt 0:00:04]} 55. Kg3 {[%emt 0:00:02]} b3 {[%emt 0:00:05]} 56. Kh4 {[%emt 0:00:02]} b2 {[%emt 0:00:03]} 57. Kh3 {[%emt 0:00:02]} b1=Q {[%emt 0:00:04]} 58. Kh2 {[%emt 0:00:02]} Qdd3 {[%emt 0:00:04]} 59. Kg2 {[%emt 0:00:02]} Qbc2+ {[%emt 0:00:02]} 0-1

[Event "African Online-ch Women 2021"]
[Site "Online"]
[Date "2021.02.01"]
[Round "2.6"]
[White "Charinda, Kudzanayi"]
[Black "Leboela, Maboloko"]
[Result "1-0"]
[ECO "C44"]
[WhiteElo "1710"]
[BlackElo "1296"]
[Annotator "NA RC"]
[PlyCount "57"]
[EventDate "2021.02.01"]
[EventType "swiss"]
[EventCountry "NET"]
[SourceTitle "playchess.com"]
[Source "ChessBase"]
[SourceQuality "1"]
[TimeControl "1500+10"]

1. e4 {[%emt 0:00:00]} e5 {[%emt 0:00:07]} 2. Nf3 {[%emt 0:00:08]} Nc6 {[%emt 0:00:03]} 3. d4 {[%emt 0:00:05]} exd4 {[%emt 0:00:04]} 4. Bc4 {[%emt 0:00:06]} Bb4+ {[%emt 0:00:21]} 5. c3 {[%emt 0:00:07]} dxc3 {[%emt 0:00:05]} 6. bxc3 {[%emt 0:00:03]} Ba5 {[%emt 0:00:09]} 7. Qb3 {[%emt 0:00:23]} Qe7 {[%emt 0:00:17]} 8. O-O {[%emt 0:00:09]} Nf6 {[%emt 0:00:16]} 9. e5 {[%emt 0:02:28]} Ng4 {[%emt 0:01:56]} 10. Ba3 {[%emt 0:00:23]} d6 {[%emt 0:00:48]} 11. exd6 {[%emt 0:00:16]} cxd6 {[%emt 0:00:12]} 12. Re1 {[%emt 0:00:21]} Nge5 {[%emt 0:00:54]} 13. Nxe5 {[%emt 0:00:21]} Nxe5 {[%emt 0:00:09]} 14. Nd2 {[%emt 0:02:17]} O-O {[%emt 0:00:27]} 15. f4 {[%emt 0:00:13]} Qf6 {[%emt 0:02:02]} 16. fxe5 {[%emt 0:00:10]} Qg5 {[%emt 0:00:16]} 17. Nf3 {[%emt 0:00:07]} Qg6 {[%emt 0:00:19]} 18. exd6 {[%emt 0:00:33]} Bh3 {[%emt 0:00:08]} 19. Bf1 {[%emt 0:00:30]} Rfc8 {[%emt 0:00:49]} 20. Rac1 {[%emt 0:00:27]} Bb6+ {[%emt 0:01:32]} 21. Kh1 {[%emt 0:00:08]} Bd7 {[%emt 0:00:08]} 22. Ne5 {[%emt 0:00:24]} Qf5 {[%emt 0:00:23]} 23. Nxd7 {[%emt 0:00:07]} Qxd7 {[%emt 0:00:04]} 24. Bb5 {[%emt 0:01:14]} Qg4 {[%emt 0:00:37]} 25. d7 {[%emt 0:00:44]} Rd8 {[%emt 0:00:58]} 26. Re8+ {[%emt 0:00:36]} Rxe8 {[%emt 0:00:06]} 27. dxe8=Q+ {[%emt 0:00:06]} Rxe8 {[%emt 0:00:02]} 28. Bxe8 {[%emt 0:00:03]} Qf4 {[%emt 0:00:12]} 29. Bxf7+ {[%emt 0:01:24]} 1-0

[Event "African Online-ch Women 2021"]
[Site "Online"]
[Date "2021.02.01"]
[Round "2.7"]
[White "Ibtihal Mohammed"]
[Black "Miladi, Amen"]
[Result "0-1"]
[ECO "B02"]
[WhiteElo "1491"]
[BlackElo "1802"]
[Annotator "NA RC"]
[PlyCount "44"]
[EventDate "2021.02.01"]
[EventType "swiss"]
[EventCountry "NET"]
[SourceTitle "playchess.com"]
[Source "ChessBase"]
[SourceQuality "1"]
[TimeControl "1500+10"]

1. e4 {[%emt 0:00:00]} c5 {[%emt 0:00:08]} 2. c3 {[%emt 0:00:04]} Nf6 {[%emt 0:00:26]} 3. e5 {[%emt 0:00:04]} Nd5 {[%emt 0:00:02]} 4. d4 {[%emt 0:00:03]} e6 {[%emt 0:00:10]} 5. Nf3 {[%emt 0:00:04]} cxd4 {[%emt 0:00:15]} 6. cxd4 {[%emt 0:00:03]} Nc6 {[%emt 0:00:05]} 7. Nc3 {[%emt 0:00:04]} d6 {[%emt 0:00:26]} 8. Nxd5 {[%emt 0:00:07]} exd5 {[%emt 0:00:04]} 9. Bb5 {[%emt 0:00:19]} Qa5+ {[%emt 0:00:06]} 10. Bd2 {[%emt 0:00:28]} Qxb5 {[%emt 0:00:04]} 11. Rc1 {[%emt 0:00:22]} dxe5 {[%emt 0:01:49]} 12. dxe5 {[%emt 0:00:20]} Bb4 {[%emt 0:00:24]} 13. a4 {[%emt 0:00:12]} Bxd2+ {[%emt 0:00:06]} 14. Qxd2 {[%emt 0:00:13]} Qb4 {[%emt 0:00:27]} 15. O-O {[%emt 0:00:16]} Qxd2 {[%emt 0:00:11]} 16. Nxd2 {[%emt 0:00:04]} O-O {[%emt 0:00:03]} 17. f4 {[%emt 0:00:02]} Nd4 {[%emt 0:00:15]} 18. Kf2 {[%emt 0:00:14]} f6 {[%emt 0:00:15]} 19. Ke3 {[%emt 0:00:10]} Nf5+ {[%emt 0:00:46]} 20. Kd3 {[%emt 0:00:06]} b6 {[%emt 0:00:08]} 21. g4 {[%emt 0:00:05]} Ba6+ {[%emt 0:00:04]} 22. Kc2 {[%emt 0:00:16]} Ne3+ {[%emt 0:00:10]} 0-1